[Event "Titled Tuesday Blitz March 08 Late 2022"]
[White "Korchmar, Vasiliy"]
[Black "Cori T., Deysi"]
[WhiteFideId "24131750"]
[BlackFideId "3801934"]
[WhiteElo "2370"]
[BlackElo "2341"]
[Result "1-0"]
[Round "11"]
[TimeControl "180+1"]
[Date "2022.03.08"]
[WhiteClock "0:00:08"]
[BlackClock "0:00:08"]

1. e4 {[%clk 0:03:00]}  e6 {[%clk 0:02:58]} 2. d4 {[%clk 0:03:00]}  d5 {[%clk 0:02:57]} 3. e5 {[%clk 0:03:00]}  c5 {[%clk 0:02:57]} 4. c3 {[%clk 0:03:01]}  Nc6 {[%clk 0:02:58]} 5. Nf3 {[%clk 0:03:01]}  Bd7 {[%clk 0:02:58]} 6. Be2 {[%clk 0:02:57]}  Nge7 {[%clk 0:02:57]} 7. Na3 {[%clk 0:02:56]}  Nf5 {[%clk 0:02:55]} 8. Nc2 {[%clk 0:02:57]}  cxd4 {[%clk 0:02:55]} 9. cxd4 {[%clk 0:02:57]}  Nb4 {[%clk 0:02:55]} 10. Nxb4 {[%clk 0:02:54]}  Bxb4+ {[%clk 0:02:56]} 11. Kf1 {[%clk 0:02:54]}  h5 {[%clk 0:02:55]} 12. Bd3 {[%clk 0:02:47]}  Rc8 {[%clk 0:02:55]} 13. g3 {[%clk 0:02:35]}  Qb6 {[%clk 0:02:55]} 14. Bxf5 {[%clk 0:02:27]}  exf5 {[%clk 0:02:55]} 15. Kg2 {[%clk 0:02:28]}  Be7 {[%clk 0:02:50]} 16. Bg5 {[%clk 0:02:23]}  Bxg5 {[%clk 0:02:45]} 17. Nxg5 {[%clk 0:02:24]}  h4 {[%clk 0:02:45]} 18. Qf3 {[%clk 0:02:18]}  Be6 {[%clk 0:02:44]} 19. Rhc1 {[%clk 0:02:10]}  h3+ {[%clk 0:02:29]} 20. Kg1 {[%clk 0:02:04]}  Rxc1+ {[%clk 0:02:28]} 21. Rxc1 {[%clk 0:02:05]}  Qxb2 {[%clk 0:02:28]} 22. Qc3 {[%clk 0:01:20]}  Qxc3 {[%clk 0:01:56]} 23. Rxc3 {[%clk 0:01:21]}  Kd7 {[%clk 0:01:56]} 24. f4 {[%clk 0:01:16]}  b5 {[%clk 0:01:21]} 25. Ra3 {[%clk 0:01:10]}  Ra8 {[%clk 0:01:19]} 26. Ra6 {[%clk 0:01:08]}  b4 {[%clk 0:00:53]} 27. Kf2 {[%clk 0:01:07]}  Rc8 {[%clk 0:00:48]} 28. Rxa7+ {[%clk 0:01:06]}  Ke8 {[%clk 0:00:48]} 29. Ke3 {[%clk 0:00:54]}  Rc2 {[%clk 0:00:26]} 30. Nxh3 {[%clk 0:00:54]}  Rxh2 {[%clk 0:00:25]} 31. Nf2 {[%clk 0:00:55]}  Rg2 {[%clk 0:00:23]} 32. Kf3 {[%clk 0:00:53]}  Rg1 {[%clk 0:00:23]} 33. Nd3 {[%clk 0:00:51]}  Rd1 {[%clk 0:00:15]} 34. Ke2 {[%clk 0:00:48]}  Rg1 {[%clk 0:00:15]} 35. Kf2 {[%clk 0:00:40]}  Rd1 {[%clk 0:00:15]} 36. Ke2 {[%clk 0:00:30]}  Rg1 {[%clk 0:00:15]} 37. Nxb4 {[%clk 0:00:28]}  Rxg3 {[%clk 0:00:15]} 38. a4 {[%clk 0:00:24]}  g5 {[%clk 0:00:15]} 39. fxg5 {[%clk 0:00:20]}  f4 {[%clk 0:00:15]} 40. a5 {[%clk 0:00:19]}  Bg4+ {[%clk 0:00:13]} 41. Kf2 {[%clk 0:00:13]}  Rb3 {[%clk 0:00:13]} 42. Nxd5 {[%clk 0:00:12]}  Rb2+ {[%clk 0:00:13]} 43. Ke1 {[%clk 0:00:12]}  f3 {[%clk 0:00:13]} 44. Nf6+ {[%clk 0:00:11]}  Kf8 {[%clk 0:00:11]} 45. Nxg4 {[%clk 0:00:12]}  Re2+ {[%clk 0:00:09]} 46. Kf1 {[%clk 0:00:12]}  Re4 {[%clk 0:00:10]} 47. Nf6 {[%clk 0:00:09]}  Rxd4 {[%clk 0:00:11]} 48. Ra8+ {[%clk 0:00:09]}  Ke7 {[%clk 0:00:08]} 49. Re8# {[%clk 0:00:08]} 1-0


[Site "https://www.chess.com"]

[Event "Titled Tuesday Blitz March 08 Late 2022"]
[White "Kosakowski, Jakub"]
[Black "Maltsevskaya, Aleksandra"]
[WhiteFideId "1185080"]
[BlackFideId "24174041"]
[WhiteElo "2476"]
[BlackElo "2241"]
[Result "0-1"]
[Round "11"]
[TimeControl "180+1"]
[Date "2022.03.08"]
[WhiteClock "0:01:23"]
[BlackClock "0:02:18"]

1. e4 {[%clk 0:02:54]}  c5 {[%clk 0:02:58]} 2. Nf3 {[%clk 0:02:54]}  e6 {[%clk 0:02:59]} 3. d4 {[%clk 0:02:54]}  cxd4 {[%clk 0:03:00]} 4. Nxd4 {[%clk 0:02:54]}  Nc6 {[%clk 0:03:01]} 5. Nc3 {[%clk 0:02:55]}  Nf6 {[%clk 0:03:00]} 6. Ndb5 {[%clk 0:02:53]}  Bc5 {[%clk 0:03:01]} 7. Bf4 {[%clk 0:02:52]}  O-O {[%clk 0:03:00]} 8. Bc7 {[%clk 0:02:53]}  Qe7 {[%clk 0:03:01]} 9. Bd6 {[%clk 0:02:53]}  Bxd6 {[%clk 0:03:01]} 10. Qxd6 {[%clk 0:02:54]}  Qd8 {[%clk 0:03:02]} 11. Nc7 {[%clk 0:02:52]}  Ne8 {[%clk 0:03:00]} 12. Nxe8 {[%clk 0:02:51]}  Rxe8 {[%clk 0:03:01]} 13. O-O-O {[%clk 0:02:50]}  a6 {[%clk 0:03:01]} 14. Be2 {[%clk 0:02:34]}  b5 {[%clk 0:03:01]} 15. Kb1 {[%clk 0:02:34]}  Qa5 {[%clk 0:02:58]} 16. Bd3 {[%clk 0:01:55]}  b4 {[%clk 0:02:56]} 17. Ne2 {[%clk 0:01:55]}  Bb7 {[%clk 0:02:55]} 18. Qxd7 {[%clk 0:01:47]}  Rab8 {[%clk 0:02:54]} 19. Qd6 {[%clk 0:01:41]}  Red8 {[%clk 0:02:51]} 20. Qg3 {[%clk 0:01:41]}  b3 {[%clk 0:02:48]} 21. axb3 {[%clk 0:01:28]}  Nb4 {[%clk 0:02:46]} 22. Nc1 {[%clk 0:01:28]}  Rbc8 {[%clk 0:02:39]} 23. Qe3 {[%clk 0:01:23]}  Rxd3 {[%clk 0:02:18]} 0-1


[Site "https://www.chess.com"]

[Event "Titled Tuesday Blitz March 08 Late 2022"]
[White "Kozina, Anastasia"]
[Black "Dias, Joao Batista"]
[WhiteFideId "24174017"]
[BlackFideId "2108240"]
[WhiteElo "1993"]
[BlackElo "1898"]
[Result "1-0"]
[Round "11"]
[TimeControl "180+1"]
[Date "2022.03.09"]
[WhiteClock "0:00:11"]
[BlackClock "0:00:22"]

1. h3 {[%clk 0:03:00]}  d5 {[%clk 0:02:58]} 2. g4 {[%clk 0:03:00]}  e5 {[%clk 0:02:57]} 3. Bg2 {[%clk 0:03:00]}  Be6 {[%clk 0:02:58]} 4. d4 {[%clk 0:03:00]}  e4 {[%clk 0:02:56]} 5. e3 {[%clk 0:02:59]}  c5 {[%clk 0:02:56]} 6. Ne2 {[%clk 0:02:59]}  Nc6 {[%clk 0:02:56]} 7. c3 {[%clk 0:02:59]}  Qa5 {[%clk 0:02:53]} 8. dxc5 {[%clk 0:02:54]}  Qxc5 {[%clk 0:02:50]} 9. O-O {[%clk 0:02:52]}  h5 {[%clk 0:02:49]} 10. g5 {[%clk 0:02:50]}  Be7 {[%clk 0:02:48]} 11. h4 {[%clk 0:02:50]}  O-O-O {[%clk 0:02:45]} 12. Nd4 {[%clk 0:02:49]}  Nxd4 {[%clk 0:02:44]} 13. cxd4 {[%clk 0:02:48]}  Qb6 {[%clk 0:02:43]} 14. Nc3 {[%clk 0:02:48]}  f6 {[%clk 0:02:42]} 15. Na4 {[%clk 0:02:40]}  Qa6 {[%clk 0:02:39]} 16. Nc5 {[%clk 0:02:40]}  Bxc5 {[%clk 0:02:38]} 17. dxc5 {[%clk 0:02:41]}  fxg5 {[%clk 0:02:38]} 18. hxg5 {[%clk 0:02:41]}  h4 {[%clk 0:02:36]} 19. Re1 {[%clk 0:02:13]}  h3 {[%clk 0:02:29]} 20. Bf1 {[%clk 0:02:12]}  Qc6 {[%clk 0:02:27]} 21. b4 {[%clk 0:02:05]}  h2+ {[%clk 0:02:27]} 22. Kh1 {[%clk 0:02:05]}  Qd7 {[%clk 0:02:27]} 23. Bb2 {[%clk 0:01:56]}  Bg4 {[%clk 0:02:25]} 24. Be2 {[%clk 0:01:56]}  Bh3 {[%clk 0:02:18]} 25. Be5 {[%clk 0:01:44]}  Qf5 {[%clk 0:02:13]} 26. Bf4 {[%clk 0:01:39]}  Ne7 {[%clk 0:02:10]} 27. Qa4 {[%clk 0:01:21]}  Bg4 {[%clk 0:01:55]} 28. Bxg4 {[%clk 0:00:56]}  Qxg4 {[%clk 0:01:55]} 29. Qd1 {[%clk 0:00:57]}  Qe6 {[%clk 0:01:48]} 30. Qe2 {[%clk 0:00:55]}  Ng6 {[%clk 0:01:47]} 31. Bg3 {[%clk 0:00:53]}  Ne5 {[%clk 0:01:44]} 32. b5 {[%clk 0:00:45]}  Nf3 {[%clk 0:01:43]} 33. Rec1 {[%clk 0:00:42]}  d4 {[%clk 0:01:32]} 34. c6 {[%clk 0:00:40]}  b6 {[%clk 0:01:31]} 35. Qd1 {[%clk 0:00:35]}  dxe3 {[%clk 0:01:27]} 36. Qa4 {[%clk 0:00:34]}  a5 {[%clk 0:00:45]} 37. bxa6 {[%clk 0:00:26]}  Rd4 {[%clk 0:00:39]} 38. Qxd4 {[%clk 0:00:16]}  Nxd4 {[%clk 0:00:38]} 39. a7 {[%clk 0:00:16]}  Kd8 {[%clk 0:00:31]} 40. a8=Q+ {[%clk 0:00:16]}  Ke7 {[%clk 0:00:31]} 41. Qxh8 {[%clk 0:00:15]}  exf2 {[%clk 0:00:30]} 42. Qxg7+ {[%clk 0:00:15]}  Ke8 {[%clk 0:00:30]} 43. Qh8+ {[%clk 0:00:15]}  Ke7 {[%clk 0:00:30]} 44. Qh7+ {[%clk 0:00:15]}  Ke8 {[%clk 0:00:30]} 45. Qh5+ {[%clk 0:00:14]}  Ke7 {[%clk 0:00:30]} 46. Qh7+ {[%clk 0:00:13]}  Ke8 {[%clk 0:00:30]} 47. Qh8+ {[%clk 0:00:14]}  Ke7 {[%clk 0:00:30]} 48. Qxd4 {[%clk 0:00:14]}  e3 {[%clk 0:00:29]} 49. Bxf2 {[%clk 0:00:13]}  Qh3 {[%clk 0:00:26]} 50. Qe5+ {[%clk 0:00:13]}  Kf8 {[%clk 0:00:26]} 51. Qxe3 {[%clk 0:00:13]}  Qf5 {[%clk 0:00:23]} 52. Bg3 {[%clk 0:00:11]}  Qd5+ {[%clk 0:00:22]} 53. Kxh2 {[%clk 0:00:11]} 1-0


[Site "https://www.chess.com"]

[Event "Titled Tuesday Blitz March 08 Late 2022"]
[White "Li, Ben"]
[Black "Rastbod, Ali"]
[WhiteFideId "2089980"]
[BlackFideId "12567477"]
[WhiteElo "2267"]
[BlackElo "2200"]
[Result "1-0"]
[Round "11"]
[TimeControl "180+1"]
[Date "2022.03.08"]
[WhiteClock "0:00:13"]
[BlackClock "0:00:03"]

1. d4 {[%clk 0:03:00]}  Nf6 {[%clk 0:02:59]} 2. c4 {[%clk 0:02:59]}  e6 {[%clk 0:02:59]} 3. Nf3 {[%clk 0:02:59]}  Bb4+ {[%clk 0:02:57]} 4. Bd2 {[%clk 0:02:59]}  Qe7 {[%clk 0:02:57]} 5. g3 {[%clk 0:02:58]}  O-O {[%clk 0:02:57]} 6. Bg2 {[%clk 0:02:58]}  Bxd2+ {[%clk 0:02:52]} 7. Qxd2 {[%clk 0:02:59]}  b6 {[%clk 0:02:51]} 8. O-O {[%clk 0:02:58]}  Bb7 {[%clk 0:02:51]} 9. Nc3 {[%clk 0:02:58]}  Ne4 {[%clk 0:02:51]} 10. Nxe4 {[%clk 0:02:57]}  Bxe4 {[%clk 0:02:52]} 11. d5 {[%clk 0:02:56]}  d6 {[%clk 0:02:45]} 12. Qe3 {[%clk 0:02:49]}  Bxf3 {[%clk 0:01:58]} 13. exf3 {[%clk 0:02:05]}  e5 {[%clk 0:01:55]} 14. f4 {[%clk 0:02:06]}  Nd7 {[%clk 0:01:48]} 15. f5 {[%clk 0:02:06]}  Qf6 {[%clk 0:01:38]} 16. Be4 {[%clk 0:01:59]}  a5 {[%clk 0:01:39]} 17. Rab1 {[%clk 0:01:52]}  Nc5 {[%clk 0:01:29]} 18. Bc2 {[%clk 0:01:53]}  a4 {[%clk 0:01:19]} 19. f3 {[%clk 0:01:48]}  b5 {[%clk 0:01:01]} 20. cxb5 {[%clk 0:01:44]}  Rfb8 {[%clk 0:01:01]} 21. Bd3 {[%clk 0:01:44]}  h5 {[%clk 0:00:31]} 22. Rfc1 {[%clk 0:01:43]}  Rb6 {[%clk 0:00:24]} 23. Rxc5 {[%clk 0:01:41]}  dxc5 {[%clk 0:00:24]} 24. Qxc5 {[%clk 0:01:42]}  Qd6 {[%clk 0:00:23]} 25. Rc1 {[%clk 0:01:40]}  Qxc5+ {[%clk 0:00:17]} 26. Rxc5 {[%clk 0:01:41]}  Ra7 {[%clk 0:00:18]} 27. Kf2 {[%clk 0:01:39]}  Kf8 {[%clk 0:00:18]} 28. Ke3 {[%clk 0:01:37]}  Ke7 {[%clk 0:00:18]} 29. Ke4 {[%clk 0:01:36]}  Kd6 {[%clk 0:00:19]} 30. Rc1 {[%clk 0:01:33]}  f6 {[%clk 0:00:19]} 31. h4 {[%clk 0:01:32]}  Ra5 {[%clk 0:00:17]} 32. g4 {[%clk 0:01:27]}  hxg4 {[%clk 0:00:13]} 33. fxg4 {[%clk 0:01:28]}  Ra8 {[%clk 0:00:13]} 34. Rh1 {[%clk 0:01:00]}  Ra5 {[%clk 0:00:08]} 35. h5 {[%clk 0:00:59]}  Raxb5 {[%clk 0:00:08]} 36. Bxb5 {[%clk 0:00:59]}  Rxb5 {[%clk 0:00:09]} 37. h6 {[%clk 0:00:59]}  gxh6 {[%clk 0:00:10]} 38. Rxh6 {[%clk 0:00:59]}  Rb4+ {[%clk 0:00:10]} 39. Kf3 {[%clk 0:00:57]}  e4+ {[%clk 0:00:04]} 40. Kf4 {[%clk 0:00:57]}  e3+ {[%clk 0:00:04]} 41. Kxe3 {[%clk 0:00:54]}  Rxg4 {[%clk 0:00:03]} 42. Rxf6+ {[%clk 0:00:53]}  Kxd5 {[%clk 0:00:04]} 43. Rg6 {[%clk 0:00:41]}  Rb4 {[%clk 0:00:03]} 44. Rg2 {[%clk 0:00:41]}  Ke5 {[%clk 0:00:03]} 45. Rf2 {[%clk 0:00:40]}  Kf6 {[%clk 0:00:03]} 46. Kd3 {[%clk 0:00:40]}  c5 {[%clk 0:00:03]} 47. Kc3 {[%clk 0:00:40]}  Rd4 {[%clk 0:00:02]} 48. b3 {[%clk 0:00:37]}  axb3 {[%clk 0:00:03]} 49. Kxb3 {[%clk 0:00:32]}  Rb4+ {[%clk 0:00:02]} 50. Kc3 {[%clk 0:00:32]}  Ra4 {[%clk 0:00:03]} 51. Kb2 {[%clk 0:00:26]}  Rb4+ {[%clk 0:00:03]} 52. Kc1 {[%clk 0:00:25]}  Rc4+ {[%clk 0:00:03]} 53. Kb1 {[%clk 0:00:25]}  Rb4+ {[%clk 0:00:03]} 54. Ka1 {[%clk 0:00:26]}  Ra4 {[%clk 0:00:02]} 55. Kb2 {[%clk 0:00:26]}  Rb4+ {[%clk 0:00:02]} 56. Ka3 {[%clk 0:00:27]}  Rb6 {[%clk 0:00:01]} 57. Ka4 {[%clk 0:00:23]}  Rb4+ {[%clk 0:00:01]} 58. Ka5 {[%clk 0:00:22]}  Rb8 {[%clk 0:00:02]} 59. a4 {[%clk 0:00:22]}  c4 {[%clk 0:00:03]} 60. Ka6 {[%clk 0:00:15]}  c3 {[%clk 0:00:03]} 61. a5 {[%clk 0:00:13]}  Rb3 {[%clk 0:00:02]} 62. Ka7 {[%clk 0:00:12]}  Ra3 {[%clk 0:00:02]} 63. a6 {[%clk 0:00:12]}  c2 {[%clk 0:00:02]} 64. Rxc2 {[%clk 0:00:11]}  Kxf5 {[%clk 0:00:03]} 65. Re2 {[%clk 0:00:11]}  Ra4 {[%clk 0:00:02]} 66. Kb7 {[%clk 0:00:11]}  Rb4+ {[%clk 0:00:03]} 67. Ka8 {[%clk 0:00:12]}  Rb3 {[%clk 0:00:02]} 68. a7 {[%clk 0:00:12]}  Rb4 {[%clk 0:00:03]} 69. Re8 {[%clk 0:00:12]}  Kf6 {[%clk 0:00:03]} 70. Rb8 {[%clk 0:00:12]}  Ra4 {[%clk 0:00:04]} 71. Rb6+ {[%clk 0:00:12]}  Ke7 {[%clk 0:00:03]} 72. Kb7 {[%clk 0:00:13]} 1-0


[Site "https://www.chess.com"]

[Event "Titled Tuesday Blitz March 08 Late 2022"]
[White "Mikhalsky, Vladimir"]
[Black "Kuegel, Tobias"]
[WhiteFideId "14144352"]
[BlackFideId "4636295"]
[WhiteElo "2301"]
[BlackElo "2213"]
[Result "0-1"]
[Round "11"]
[TimeControl "180+1"]
[Date "2022.03.08"]
[WhiteClock "0:00:29"]
[BlackClock "0:00:15"]

1. c4 {[%clk 0:03:00]}  b6 {[%clk 0:02:59]} 2. d4 {[%clk 0:02:59]}  Bb7 {[%clk 0:02:57]} 3. f3 {[%clk 0:02:59]}  Nf6 {[%clk 0:02:55]} 4. e4 {[%clk 0:02:59]}  Nc6 {[%clk 0:02:50]} 5. Nc3 {[%clk 0:02:57]}  e5 {[%clk 0:02:50]} 6. d5 {[%clk 0:02:55]}  Nd4 {[%clk 0:02:50]} 7. Nge2 {[%clk 0:02:53]}  Bc5 {[%clk 0:02:49]} 8. Na4 {[%clk 0:02:43]}  Bb4+ {[%clk 0:01:53]} 9. Kf2 {[%clk 0:02:41]}  Nxe2 {[%clk 0:01:37]} 10. Bxe2 {[%clk 0:02:39]}  O-O {[%clk 0:01:35]} 11. a3 {[%clk 0:02:33]}  Bd6 {[%clk 0:01:30]} 12. b4 {[%clk 0:02:24]}  Nh5 {[%clk 0:01:27]} 13. c5 {[%clk 0:02:21]}  bxc5 {[%clk 0:01:27]} 14. bxc5 {[%clk 0:02:19]}  Be7 {[%clk 0:01:25]} 15. Rb1 {[%clk 0:02:17]}  Rb8 {[%clk 0:01:21]} 16. Bc4 {[%clk 0:02:08]}  Kh8 {[%clk 0:01:05]} 17. Be3 {[%clk 0:01:47]}  Bg5 {[%clk 0:00:54]} 18. Qd2 {[%clk 0:01:33]}  Bxe3+ {[%clk 0:00:53]} 19. Qxe3 {[%clk 0:01:33]}  f5 {[%clk 0:00:50]} 20. exf5 {[%clk 0:01:18]}  Qh4+ {[%clk 0:00:50]} 21. g3 {[%clk 0:01:07]}  Qxc4 {[%clk 0:00:50]} 22. Qe4 {[%clk 0:01:07]}  Bxd5 {[%clk 0:00:44]} 23. Qxc4 {[%clk 0:01:07]}  Bxc4 {[%clk 0:00:45]} 24. g4 {[%clk 0:01:03]}  Nf4 {[%clk 0:00:43]} 25. Ke3 {[%clk 0:01:03]}  Bb5 {[%clk 0:00:34]} 26. Nc3 {[%clk 0:01:01]}  Bc6 {[%clk 0:00:33]} 27. h4 {[%clk 0:00:52]}  g6 {[%clk 0:00:28]} 28. fxg6 {[%clk 0:00:49]}  hxg6 {[%clk 0:00:28]} 29. h5 {[%clk 0:00:50]}  gxh5 {[%clk 0:00:24]} 30. Ne4 {[%clk 0:00:46]}  Rxb1 {[%clk 0:00:15]} 31. Rxb1 {[%clk 0:00:45]}  hxg4 {[%clk 0:00:15]} 32. Rh1+ {[%clk 0:00:41]}  Kg7 {[%clk 0:00:15]} 33. Rg1 {[%clk 0:00:39]}  Nd5+ {[%clk 0:00:12]} 34. Ke2 {[%clk 0:00:38]}  Nf6 {[%clk 0:00:13]} 35. Nxf6 {[%clk 0:00:35]}  Bxf3+ {[%clk 0:00:13]} 36. Ke3 {[%clk 0:00:34]}  Kxf6 {[%clk 0:00:14]} 37. Rb1 {[%clk 0:00:31]}  Ke6 {[%clk 0:00:14]} 38. Rb4 {[%clk 0:00:30]}  Kd5 {[%clk 0:00:13]} 39. Ra4 {[%clk 0:00:29]}  Kxc5 {[%clk 0:00:13]} 40. Rxa7 {[%clk 0:00:29]}  Kb6 {[%clk 0:00:14]} 41. Ra4 {[%clk 0:00:29]}  d5 {[%clk 0:00:14]} 42. Rb4+ {[%clk 0:00:29]}  Kc5 {[%clk 0:00:14]} 43. Rb7 {[%clk 0:00:29]}  d4+ {[%clk 0:00:14]} 44. Kd2 {[%clk 0:00:29]}  Bxb7 {[%clk 0:00:15]} 0-1


[Site "https://www.chess.com"]

[Event "Titled Tuesday Blitz March 08 Late 2022"]
[White "Moksh Amit Doshi"]
[Black "Bibasa, Bob"]
[WhiteFideId "25064967"]
[BlackFideId "10000240"]
[WhiteElo "2245"]
[BlackElo "2056"]
[Result "1-0"]
[Round "11"]
[TimeControl "180+1"]
[Date "2022.03.08"]
[WhiteClock "0:02:04"]
[BlackClock "0:01:21"]

1. e3 {[%clk 0:02:49]}  e5 {[%clk 0:02:59]} 2. d4 {[%clk 0:02:48]}  exd4 {[%clk 0:02:58]} 3. exd4 {[%clk 0:02:49]}  d5 {[%clk 0:02:58]} 4. Nf3 {[%clk 0:02:50]}  Nf6 {[%clk 0:02:57]} 5. Bd3 {[%clk 0:02:50]}  Bd6 {[%clk 0:02:58]} 6. Qe2+ {[%clk 0:02:51]}  Qe7 {[%clk 0:02:44]} 7. Qxe7+ {[%clk 0:02:50]}  Kxe7 {[%clk 0:02:45]} 8. O-O {[%clk 0:02:51]}  Bg4 {[%clk 0:02:40]} 9. Re1+ {[%clk 0:02:48]}  Kd8 {[%clk 0:02:40]} 10. Ne5 {[%clk 0:02:44]}  Be6 {[%clk 0:02:40]} 11. Bg5 {[%clk 0:02:36]}  Nd7 {[%clk 0:02:39]} 12. f4 {[%clk 0:02:36]}  h6 {[%clk 0:02:19]} 13. Bh4 {[%clk 0:02:34]}  Bg4 {[%clk 0:01:34]} 14. Nxg4 {[%clk 0:02:30]}  g5 {[%clk 0:01:33]} 15. Nxf6 {[%clk 0:02:30]}  Nxf6 {[%clk 0:01:33]} 16. fxg5 {[%clk 0:02:30]}  hxg5 {[%clk 0:01:33]} 17. Bxg5 {[%clk 0:02:28]}  Be7 {[%clk 0:01:33]} 18. Nd2 {[%clk 0:02:25]}  Rg8 {[%clk 0:01:29]} 19. Nf3 {[%clk 0:02:22]}  Kd7 {[%clk 0:01:24]} 20. Rxe7+ {[%clk 0:02:18]}  Kxe7 {[%clk 0:01:24]} 21. Re1+ {[%clk 0:02:18]}  Kd6 {[%clk 0:01:22]} 22. Bxf6 {[%clk 0:02:18]}  Rae8 {[%clk 0:01:21]} 23. Rxe8 {[%clk 0:02:15]}  Rxe8 {[%clk 0:01:22]} 24. h4 {[%clk 0:02:16]}  Re6 {[%clk 0:01:21]} 25. Be5+ {[%clk 0:02:13]}  Kc6 {[%clk 0:01:21]} 26. h5 {[%clk 0:02:10]}  f6 {[%clk 0:01:22]} 27. Bf4 {[%clk 0:02:08]}  Re8 {[%clk 0:01:22]} 28. h6 {[%clk 0:02:07]}  Kd7 {[%clk 0:01:22]} 29. h7 {[%clk 0:02:05]}  Ke7 {[%clk 0:01:21]} 30. Bh6 {[%clk 0:02:04]}  Kf7 {[%clk 0:01:21]} 31. Nh4 {[%clk 0:02:04]} 1-0


[Site "https://www.chess.com"]

[Event "Titled Tuesday Blitz March 08 Late 2022"]
[White "Morris-Suzuki, Sophie"]
[Black "Mekhitarian, Krikor Sevag"]
[WhiteFideId "30922615"]
[BlackFideId "2107660"]
[WhiteElo "2494"]
[BlackElo "2598"]
[Result "0-1"]
[Round "11"]
[TimeControl "180+1"]
[Date "2022.03.08"]
[WhiteClock "0:00:20"]
[BlackClock "0:00:10"]

1. d4 {[%clk 0:03:00]}  Nf6 {[%clk 0:02:59]} 2. c4 {[%clk 0:03:01]}  g6 {[%clk 0:02:55]} 3. Nc3 {[%clk 0:03:01]}  d5 {[%clk 0:02:55]} 4. cxd5 {[%clk 0:02:59]}  Nxd5 {[%clk 0:02:55]} 5. g3 {[%clk 0:02:59]}  Bg7 {[%clk 0:02:54]} 6. Bg2 {[%clk 0:02:59]}  Nb6 {[%clk 0:02:54]} 7. Nf3 {[%clk 0:03:00]}  Nc6 {[%clk 0:02:52]} 8. e3 {[%clk 0:03:00]}  O-O {[%clk 0:02:51]} 9. O-O {[%clk 0:03:00]}  Re8 {[%clk 0:02:50]} 10. Nh4 {[%clk 0:02:57]}  a5 {[%clk 0:02:44]} 11. Rb1 {[%clk 0:02:55]}  a4 {[%clk 0:02:41]} 12. f4 {[%clk 0:02:55]}  Nb4 {[%clk 0:02:02]} 13. Qe2 {[%clk 0:02:48]}  c6 {[%clk 0:01:59]} 14. a3 {[%clk 0:02:35]}  N4d5 {[%clk 0:01:58]} 15. Ne4 {[%clk 0:02:22]}  Nc7 {[%clk 0:01:38]} 16. Bd2 {[%clk 0:02:19]}  Be6 {[%clk 0:01:32]} 17. Rbc1 {[%clk 0:02:13]}  Bd5 {[%clk 0:01:31]} 18. Bb4 {[%clk 0:01:28]}  Nc8 {[%clk 0:01:22]} 19. Bf3 {[%clk 0:01:20]}  Nd6 {[%clk 0:01:18]} 20. Ng5 {[%clk 0:01:18]}  Bxf3 {[%clk 0:01:12]} 21. Nhxf3 {[%clk 0:01:15]}  h6 {[%clk 0:01:10]} 22. Nh3 {[%clk 0:01:15]}  Nd5 {[%clk 0:01:09]} 23. e4 {[%clk 0:01:09]}  Nxb4 {[%clk 0:01:08]} 24. axb4 {[%clk 0:01:10]}  Nb5 {[%clk 0:01:09]} 25. Rfd1 {[%clk 0:00:53]}  Nxd4 {[%clk 0:00:55]} 26. Nxd4 {[%clk 0:00:53]}  Bxd4+ {[%clk 0:00:56]} 27. Kg2 {[%clk 0:00:54]}  e5 {[%clk 0:00:43]} 28. fxe5 {[%clk 0:00:47]}  Qb6 {[%clk 0:00:42]} 29. Qd2 {[%clk 0:00:31]}  Bxe5 {[%clk 0:00:41]} 30. Qxh6 {[%clk 0:00:31]}  Bg7 {[%clk 0:00:39]} 31. Qf4 {[%clk 0:00:30]}  Qxb4 {[%clk 0:00:33]} 32. Ng5 {[%clk 0:00:29]}  Re7 {[%clk 0:00:26]} 33. Qd6 {[%clk 0:00:15]}  Qxd6 {[%clk 0:00:24]} 34. Rxd6 {[%clk 0:00:16]}  Bxb2 {[%clk 0:00:24]} 35. Rcd1 {[%clk 0:00:07]}  a3 {[%clk 0:00:23]} 36. Rd8+ {[%clk 0:00:08]}  Rxd8 {[%clk 0:00:23]} 37. Rxd8+ {[%clk 0:00:09]}  Kg7 {[%clk 0:00:23]} 38. Ra8 {[%clk 0:00:09]}  b5 {[%clk 0:00:22]} 39. Nf3 {[%clk 0:00:10]}  b4 {[%clk 0:00:22]} 40. Nd2 {[%clk 0:00:09]}  c5 {[%clk 0:00:22]} 41. Nc4 {[%clk 0:00:08]}  Rxe4 {[%clk 0:00:18]} 42. Nb6 {[%clk 0:00:05]}  Re2+ {[%clk 0:00:15]} 43. Kf3 {[%clk 0:00:06]}  Rxh2 {[%clk 0:00:15]} 44. Nc4 {[%clk 0:00:06]}  Rc2 {[%clk 0:00:14]} 45. Ne3 {[%clk 0:00:05]}  Rc3 {[%clk 0:00:14]} 46. Ke4 {[%clk 0:00:06]}  Rxe3+ {[%clk 0:00:14]} 47. Kxe3 {[%clk 0:00:07]}  b3 {[%clk 0:00:14]} 48. Kd3 {[%clk 0:00:07]}  a2 {[%clk 0:00:14]} 49. Kc4 {[%clk 0:00:05]}  a1=Q {[%clk 0:00:14]} 50. Rxa1 {[%clk 0:00:05]}  Bxa1 {[%clk 0:00:15]} 51. Kxb3 {[%clk 0:00:06]}  Bd4 {[%clk 0:00:15]} 52. Kc4 {[%clk 0:00:07]}  Kf6 {[%clk 0:00:16]} 53. Kd5 {[%clk 0:00:08]}  Kg5 {[%clk 0:00:17]} 54. Ke4 {[%clk 0:00:08]}  Kg4 {[%clk 0:00:15]} 55. Kd5 {[%clk 0:00:08]}  Kxg3 {[%clk 0:00:15]} 56. Kd6 {[%clk 0:00:08]}  f5 {[%clk 0:00:14]} 57. Ke7 {[%clk 0:00:09]}  f4 {[%clk 0:00:15]} 58. Kf7 {[%clk 0:00:10]}  f3 {[%clk 0:00:16]} 59. Kxg6 {[%clk 0:00:11]}  f2 {[%clk 0:00:16]} 60. Kf7 {[%clk 0:00:11]}  f1=Q+ {[%clk 0:00:16]} 61. Ke6 {[%clk 0:00:12]}  Qf6+ {[%clk 0:00:16]} 62. Kd5 {[%clk 0:00:13]}  Bg1 {[%clk 0:00:14]} 63. Kc4 {[%clk 0:00:14]}  Qd4+ {[%clk 0:00:14]} 64. Kb5 {[%clk 0:00:15]}  c4 {[%clk 0:00:14]} 65. Kc6 {[%clk 0:00:15]}  Kf4 {[%clk 0:00:14]} 66. Kb7 {[%clk 0:00:16]}  Qc5 {[%clk 0:00:14]} 67. Ka6 {[%clk 0:00:16]}  Bh2 {[%clk 0:00:11]} 68. Kb7 {[%clk 0:00:17]}  Ke5 {[%clk 0:00:10]} 69. Ka6 {[%clk 0:00:18]}  Qb4 {[%clk 0:00:10]} 70. Ka7 {[%clk 0:00:18]}  Kd6 {[%clk 0:00:10]} 71. Ka6 {[%clk 0:00:19]}  Kc7 {[%clk 0:00:10]} 72. Ka7 {[%clk 0:00:20]}  Qa4# {[%clk 0:00:10]} 0-1


[Site "https://www.chess.com"]